fUST/lending_fUST_20260402
["ID","MTS","AMOUNT","RATE_DAILY","PERIOD"]
[419273287,1775082640841,-300.0,0.00019798,2]
[419273288,1775082640851,-300.0,0.00019798,2]
[419273290,1775082640860,-300.0,0.00019798,2]
[419273292,1775082640870,-300.0,0.00019798,2]
[419273294,1775082640880,-300.0,0.00019798,2]
[419273296,1775082640889,-300.0,0.00019798,2]
[419273297,1775082640898,-300.0,0.00019798,2]
[419273298,1775082640907,-324.6060827,0.00019911,2]
[419273300,1775082640916,-324.958712,0.00019911,2]
[419273302,1775082640926,-420.0,0.00020037,2]
[419273304,1775082640935,-598.27673268,0.00020067,16]
[419273306,1775082640947,-599.33919034,0.00020067,16]
[419273307,1775082640957,-618.86633996,0.00020067,16]
[419273309,1775082640966,-162.469983,0.00020131,2]
[419273311,1775082640975,-600.0,0.00020193,2]
[419273312,1775082640985,-151.0,0.00020401,2]
[419273313,1775082640995,-151.0,0.00020401,2]
[419273314,1775082641004,-352.60510573,0.00020401,2]
[419273315,1775082641014,-634.68919031,0.00020401,2]
[419273317,1775082641023,-1128.33633833,0.00020401,2]
[419273319,1775082641032,-168.18515446,0.00020489,5]
[419273321,1775082641042,-2927.469935,0.00020689,2]
[419273322,1775082641051,-8231.06600715,0.000207,2]
[419273324,1775082641061,-455.1794191,0.00020733,2]
[419273325,1775082641070,-196.2713615,0.00020733,2]
[419273326,1775082641079,-1761.26250311,0.00020748,2]
[419273327,1775082641089,-182.089199,0.00020748,2]
[419273328,1775082641099,-172.37684368,0.00020754,2]
[419273329,1775082641109,-500.0,0.00020759,2]
[419273330,1775082641119,-500.0,0.00020759,2]
[419273331,1775082641129,-500.0,0.00020759,2]
[419273332,1775082641139,-500.0,0.00020759,2]
[419273333,1775082641149,-500.0,0.00020759,2]
[419273334,1775082641159,-504.85786185,0.00020759,2]
[419273335,1775082641169,-500.0,0.00020759,2]
[419273336,1775082641179,-500.0,0.00020759,2]
[419273337,1775082641189,-500.0,0.00020759,2]
[419273338,1775082641199,-500.0,0.00020759,2]
[419273339,1775082641208,-500.0,0.00020759,2]
[419273340,1775082641218,-500.0,0.00020759,2]
[419273341,1775082641227,-500.0,0.00020759,2]
[419273342,1775082641237,-500.0,0.00020759,2]
[419273343,1775082641246,-500.0,0.00020759,2]
[419273344,1775082641256,-500.0,0.00020759,2]
[419273345,1775082641266,-500.0,0.00020759,2]
[419273346,1775082641275,-500.0,0.00020759,2]
[419273347,1775082641285,-500.0,0.00020759,2]
[419273348,1775082641294,-376.27206868,0.00020759,2]
[419273349,1775082641303,-500.0,0.00020759,2]
[419273350,1775082641312,-500.0,0.00020759,2]
[419273351,1775082641322,-463.68926173,0.00020759,2]
[419273352,1775082641333,-500.0,0.00020759,2]
[419273353,1775082641343,-500.0,0.00020759,2]
[419273354,1775082641352,-500.0,0.00020759,2]
[419273355,1775082641363,-500.0,0.00020759,2]
[419273356,1775082641374,-500.0,0.00020759,2]
[419273357,1775082641383,-500.0,0.00020759,2]
[419273358,1775082641393,-159.5721549,0.00020759,2]
[419273359,1775082641402,-500.0,0.00020759,2]
[419273360,1775082641413,-500.0,0.00020759,2]
[419273361,1775082641423,-500.0,0.00020759,2]
[419273362,1775082641432,-500.0,0.00020759,2]
[419273363,1775082641441,-500.0,0.00020759,2]
[419273364,1775082641452,-500.0,0.00020759,2]
[419273365,1775082641462,-500.0,0.00020759,2]
[419273366,1775082641472,-500.0,0.00020759,2]
[419273367,1775082641482,-500.0,0.00020759,2]
[419273368,1775082641491,-500.0,0.00020759,2]
[419273369,1775082641501,-500.0,0.00020759,2]
[419273370,1775082641511,-500.0,0.00020759,2]
[419273371,1775082641520,-500.0,0.00020759,2]
[419273372,1775082641530,-500.0,0.00020759,2]
[419273373,1775082641653,-500.0,0.00020759,2]
[419273374,1775082641664,-500.0,0.00020759,2]
[419273375,1775082641674,-500.0,0.00020759,2]
[419273376,1775082641683,-500.0,0.00020759,2]
[419273377,1775082641692,-500.0,0.00020759,2]
[419273378,1775082641701,-500.0,0.00020759,2]
[419273379,1775082641711,-500.0,0.00020759,2]
[419273380,1775082641719,-3735.5301045,0.0002076,2]
[419273381,1775082641729,-151.0,0.0002076,2]
[419273382,1775082641738,-151.0,0.0002076,2]
[419273383,1775082641747,-181.349724,0.0002076,2]
[419273384,1775082641757,-500.0,0.0002076,2]
[419273385,1775082641766,-786.89718184,0.00020793,2]
[419273386,1775082641775,-177.75475516,0.00020799,2]
[419273387,1775082641783,-500.0,0.00020799,2]
[419273388,1775082641792,-500.0,0.00020799,2]
[419273389,1775082641802,-292.61121055,0.00020799,2]
[419273390,1775082641811,-500.0,0.00020799,2]
[419273391,1775082641820,-500.0,0.00020799,2]
[419273392,1775082641829,-500.0,0.00020799,2]
[419273393,1775082641839,-440.97350603,0.00020799,2]
[419273394,1775082641848,-1237791.20350927,0.000208,2]
[419273395,1775082641861,-1735.28959165,0.000208,2]
[419273417,1775082646434,-6070.70407332,0.000208,2]
[419273418,1775082646494,-10448.39880365,0.000208,2]
[419273419,1775082646505,-5590.80279193,0.000208,2]
[419273420,1775082795057,1236.0,0.00036585,120]
[419273421,1775082796955,1060.0,0.00036585,120]
[419273430,1775083436632,350.0,0.00029752,120]
[419273749,1775083843578,-5000.0,0.00013027,2]
[419273751,1775083843587,-4179.49934648,0.00013159,2]
[419273752,1775083843596,-300.0,0.00013291,2]
[419273753,1775083843607,-3642.01347538,0.00013292,2]
[419273754,1775083843616,-1000.0,0.00013699,2]
[419273755,1775083843627,-300.0,0.00013972,2]
[419273756,1775083843636,-300.0,0.00013972,2]
[419273757,1775083843645,-300.0,0.00013972,2]
[419273758,1775083843655,-300.0,0.00013972,2]
[419273759,1775083843664,-300.0,0.00013972,2]
[419273760,1775083843674,-300.0,0.00013972,2]
[419273761,1775083843684,-300.0,0.00013972,2]
[419273762,1775083843693,-300.0,0.00013972,2]
[419273763,1775083843703,-300.0,0.00013972,2]
[419273764,1775083843712,-300.0,0.00013972,2]
[419273765,1775083843722,-300.0,0.00013972,2]
[419273766,1775083843732,-300.0,0.00013972,2]
[419273767,1775083843743,-300.0,0.00013972,2]
[419273768,1775083843752,-300.0,0.00013972,2]
[419273769,1775083843762,-300.0,0.00013972,2]
[419273770,1775083843771,-600.0,0.0001425,2]
[419273771,1775083843781,-420.0,0.00014571,2]
[419273772,1775083843790,-720.0,0.00015675,2]
[419273774,1775083843799,-587.0,0.00015975,2]
[419273776,1775083843809,-864.0,0.00017243,2]
[419273778,1775083843819,-823.0,0.00017514,2]
[419273780,1775083843828,-163.92970389,0.00018735,2]
[419273782,1775083843837,-1000.0,0.00018967,2]
[419273783,1775083843847,-438.0,0.00019202,2]
[419273784,1775083843857,-300.0,0.00019383,2]
[419273785,1775083843867,-2251.2225945,0.00019669,2]
[419273786,1775083843877,-4705.01579007,0.00019985,2]
[419273787,1775083843889,-829.60820873,0.00019985,2]
[419273788,1775083843899,-500.0,0.0002002,2]
[419273789,1775083843910,-989.85825118,0.00020045,16]
[419273790,1775083843920,-279.72056677,0.00020066,2]
[419273791,1775083843930,-294.77839353,0.00020066,2]
[419273792,1775083843939,-195.131,0.00020286,2]
[419273793,1775083843949,-1000.0,0.00020568,2]
[419273794,1775083843958,-500.0,0.00020573,2]
[419273795,1775083843968,-500.0,0.00020573,2]
[419273796,1775083843979,-500.0,0.00020573,2]
[419273797,1775083843990,-500.0,0.00020573,2]
[419273798,1775083843999,-500.0,0.00020573,2]
[419273799,1775083844009,-644.79446246,0.00020588,2]
[419273800,1775083844018,-644.79446246,0.00020588,2]
[419273801,1775083844028,-2579.17784983,0.00020588,2]
[419273802,1775083844039,-500.0,0.00020596,2]
[419273803,1775083844050,-329.29880686,0.00020596,2]
[419273804,1775083844059,-500.0,0.00020596,2]
[419273805,1775083844069,-500.0,0.00020596,2]
[419273806,1775083844078,-500.0,0.00020596,2]
[419273807,1775083844087,-500.0,0.00020596,2]
[419273808,1775083844098,-500.0,0.00020596,2]
[419273809,1775083844109,-500.0,0.00020596,2]
[419273810,1775083844118,-500.0,0.00020596,2]
[419273811,1775083844128,-500.0,0.00020596,2]
[419273812,1775083844138,-500.0,0.00020596,2]
[419273813,1775083844147,-500.0,0.00020596,2]
[419273814,1775083844156,-500.0,0.00020596,2]
[419273815,1775083844166,-500.0,0.00020596,2]
[419273816,1775083844175,-500.0,0.00020596,2]
[419273817,1775083844185,-500.0,0.00020596,2]
[419273818,1775083844195,-500.0,0.00020596,2]
[419273819,1775083844204,-500.0,0.00020596,2]
[419273820,1775083844214,-500.0,0.00020596,2]
[419273821,1775083844224,-500.0,0.00020596,2]
[419273822,1775083844233,-500.0,0.00020596,2]
[419273823,1775083844242,-500.0,0.00020596,2]
[419273824,1775083844252,-500.0,0.00020596,2]
[419273825,1775083844261,-500.0,0.00020596,2]
[419273826,1775083844270,-500.0,0.00020596,2]
[419273827,1775083844279,-500.0,0.00020596,2]
[419273828,1775083844289,-318.98867969,0.00020596,2]
[419273829,1775083844299,-500.0,0.00020596,2]
[419273830,1775083844308,-500.0,0.00020596,2]
[419273831,1775083844318,-500.0,0.00020596,2]
[419273832,1775083844327,-500.0,0.00020596,2]
[419273833,1775083844337,-500.0,0.00020596,2]
[419273834,1775083844346,-500.0,0.00020596,2]
[419273835,1775083844356,-500.0,0.00020596,2]
[419273836,1775083844365,-500.0,0.00020596,2]
[419273837,1775083844374,-500.0,0.00020596,2]
[419273838,1775083844384,-502.13384113,0.00020596,2]
[419273839,1775083844394,-500.0,0.00020596,2]
[419273840,1775083844403,-500.0,0.00020596,2]
[419273841,1775083844412,-500.0,0.00020596,2]
[419273842,1775083844422,-500.0,0.00020596,2]
[419273843,1775083844431,-500.0,0.00020596,2]
[419273844,1775083844440,-500.0,0.00020596,2]
[419273845,1775083844450,-500.0,0.00020596,2]
[419273846,1775083844460,-500.0,0.00020596,2]
[419273847,1775083844470,-500.0,0.00020596,2]
[419273848,1775083844479,-500.0,0.00020596,2]
[419273849,1775083844488,-500.0,0.00020596,2]
[419273850,1775083844497,-500.0,0.00020596,2]
[419273851,1775083844506,-500.0,0.00020596,2]
[419273852,1775083844515,-500.0,0.00020596,2]
[419273853,1775083844525,-500.0,0.00020596,2]
[419273854,1775083844535,-500.0,0.00020596,2]
[419273855,1775083844544,-500.0,0.00020596,2]
[419273856,1775083844554,-500.0,0.00020596,2]
[419273857,1775083844563,-500.0,0.00020596,2]
[419273858,1775083844572,-500.0,0.00020596,2]
[419273859,1775083844582,-500.0,0.00020596,2]
[419273860,1775083844591,-500.0,0.00020596,2]
[419273861,1775083844600,-500.0,0.00020596,2]
[419273862,1775083844610,-500.0,0.00020596,2]
[419273863,1775083844619,-500.0,0.00020596,2]
[419273864,1775083844629,-500.0,0.00020599,2]
[419273865,1775083844638,-500.0,0.00020599,2]
[419273866,1775083844647,-500.0,0.00020599,2]
[419273867,1775083844656,-327.96633997,0.00020599,2]
[419273868,1775083844666,-208.68145422,0.00020599,2]
[419273869,1775083844675,-500.0,0.00020599,2]
[419273870,1775083844685,-500.0,0.00020599,2]
[419273871,1775083844695,-200.0,0.00020642,2]
[419273872,1775083844704,-668.65185757,0.00020643,2]
[419273873,1775083844714,-178.56,0.00020668,2]
[419273874,1775083844723,-256.6674,0.00020669,2]
[419273875,1775083844733,-256.6674,0.0002067,2]
[419273876,1775083844743,-256.6674,0.00020671,2]
[419273877,1775083844753,-200.0,0.00020672,2]
[419273878,1775083844763,-693.3919763,0.00020698,2]
[419273879,1775083844772,-809.8,0.000207,2]
[419273880,1775083844781,-809.8,0.000207,2]
[419273881,1775083844792,-809.8,0.000207,2]
[419273882,1775083844803,-809.8,0.000207,2]
[419273883,1775083844812,-809.8,0.000207,2]
[419273884,1775083844822,-809.8,0.000207,2]
[419273885,1775083844831,-809.8,0.000207,2]
[419273886,1775083844841,-809.8,0.000207,2]
[419273887,1775083844851,-809.8,0.000207,2]
[419273888,1775083844860,-1227.17,0.000207,2]
[419273889,1775083844870,-719.04747942,0.00020753,2]
[419273890,1775083844879,-10468.866145,0.00020799,2]
[419273891,1775083844889,-1695.692395,0.00020799,2]
[419273892,1775083844899,-745.65223616,0.00020808,2]
[419273893,1775083844908,-773.2413689,0.00020863,2]
[419273894,1775083844917,-1000.0,0.00020864,2]
[419273895,1775083845025,-244.0,0.00020864,2]
[419273896,1775083845035,-500.0,0.00020873,2]
[419273897,1775083845044,-5000.0,0.000209,2]
[419273898,1775083845053,-5000.0,0.000209,2]
[419273899,1775083845062,-801.85129955,0.00020918,2]
[419273900,1775083845072,-250.0,0.00020932,3]
[419273901,1775083845081,-831.51979763,0.00020973,2]
[419273902,1775083845091,-862.28603014,0.00021028,2]
[419273903,1775083845100,-894.19061326,0.00021083,2]
[419273904,1775083845109,-1500.0,0.00021116,2]
[419273905,1775083845119,-500.0,0.00021121,2]
[419273906,1775083845128,-1000.0,0.00021121,2]
[419273907,1775083845137,-1000.0,0.00021121,2]
[419273908,1775083845146,-1000.0,0.00021121,2]
[419273909,1775083845155,-500.0,0.00021121,2]
[419273910,1775083845165,-668.65185757,0.00021136,2]
[419273911,1775083845174,-2674.60743027,0.00021136,2]
[419273912,1775083845183,-927.27566595,0.00021138,2]
[419273913,1775083845192,-446.50597121,0.00021145,5]
[419273914,1775083845201,-500.0,0.00021147,2]
[419273915,1775083845211,-961.58486559,0.00021193,2]
[419273916,1775083845220,-500.0,0.00021244,2]
[419273917,1775083845229,-997.16350561,0.00021248,2]
[419273918,1775083845238,-500.0,0.00021421,2]
[419273919,1775083845248,-151.0,0.000215,4]
[419273920,1775083845258,-151.0,0.000215,4]
[419273921,1775083845267,-151.0,0.000215,3]
[419273922,1775083845276,-500.0,0.00021578,2]
[419273923,1775083845286,-592.49108393,0.00021664,2]
[419273924,1775083845296,-1500.0,0.00021668,2]
[419273925,1775083845305,-1500.0,0.00021668,2]
[419273926,1775083845314,-1500.0,0.00021668,2]
[419273927,1775083845324,-693.3919763,0.00021684,2]
[419273928,1775083845333,-2773.56790519,0.00021684,2]
[419273929,1775083845343,-500.0,0.00021695,2]
[419273930,1775083845352,-1000.0,0.00021792,2]
[419273931,1775083845362,-288.926078,0.00021918,2]
[419273932,1775083845371,-151.0,0.00021918,2]
[419273933,1775083845380,-288.926078,0.00021918,2]
[419273934,1775083845390,-151.0,0.00021918,2]
[419273935,1775083845401,-288.926078,0.00021918,2]
[419273936,1775083845411,-151.0,0.00021918,2]
[419273937,1775083845420,-288.926078,0.00021918,2]
[419273938,1775083845431,-151.0,0.00021918,2]
[419273939,1775083845441,-151.0,0.00021918,2]
[419273940,1775083845451,-151.0,0.00021918,2]
[419273941,1775083845461,-151.0,0.00021918,2]
[419273942,1775083845471,-267.258208,0.00021918,2]
[419273943,1775083845482,-267.258208,0.00021918,2]
[419273944,1775083845491,-267.258208,0.00021918,2]
[419273945,1775083845501,-267.258208,0.00021918,2]
[419273946,1775083845511,-500.0,0.00021969,2]
[419273947,1775083845520,-500.0,0.00022,2]
[419273948,1775083845530,-159.0,0.00022,2]
[419273949,1775083845539,-166.0,0.00022,2]
[419273950,1775083845549,-187.0,0.00022,2]
[419273951,1775083845558,-164.0,0.00022,2]
[419273952,1775083845570,-209.0,0.00022,2]
[419273953,1775083845580,-158.60704275,0.00022126,2]
[419273954,1775083845590,-164.0,0.00022192,7]
[419273955,1775083845599,-1563.992037,0.00022212,2]
[419273956,1775083845608,-1563.992037,0.00022212,2]
[419273957,1775083845619,-1563.992037,0.00022212,2]
[419273958,1775083845630,-1563.992037,0.00022212,2]
[419273959,1775083845641,-151.0,0.00022212,2]
[419273960,1775083845651,-151.0,0.00022212,2]
[419273961,1775083845661,-2377.435696,0.00022212,2]
[419273962,1775083845671,-2377.435696,0.00022212,2]
[419273964,1775083845680,-151.0,0.00022212,2]
[419273966,1775083845690,-2377.435696,0.00022212,2]
[419273968,1775083845699,-2377.435696,0.00022212,2]
[419273970,1775083845709,-151.0,0.00022212,2]
[419273972,1775083845718,-151.0,0.00022212,2]
[419273974,1775083845727,-151.0,0.00022212,2]
[419273976,1775083845737,-151.0,0.00022212,2]
[419273978,1775083845747,-151.0,0.00022212,2]
[419273979,1775083845757,-617.230416,0.00022212,2]
[419273980,1775083845767,-617.230416,0.00022212,2]
[419273981,1775083845776,-617.230416,0.00022212,2]
[419273982,1775083845786,-617.230416,0.00022212,2]
[419273983,1775083845795,-1815.498485,0.00022212,2]
[419273984,1775083845805,-1815.498485,0.00022212,2]
[419273985,1775083845814,-1815.498485,0.00022212,2]
[419273986,1775083845823,-486.83229724,0.00022212,2]
[419273988,1775083845837,-1328.66618776,0.00022212,2]
[419273990,1775083845847,-2000.0,0.00022216,2]
[419273992,1775083845856,-2000.0,0.00022216,2]
[419273993,1775083845866,-2000.0,0.00022216,2]
[419273994,1775083845875,-325.1533866,0.00022232,2]
[419273995,1775083845884,-2876.18991768,0.00022232,2]
[419273996,1775083845894,-500.0,0.00022243,2]
[419273997,1775083845903,-1500.0,0.0002234,2]
[419273998,1775083845912,-407.8098368,0.00022375,2]
[419273999,1775083845921,-1042.38845744,0.000225,2]
[419274000,1775083845930,-500.0,0.00022517,2]
[419274001,1775083845940,-299.291549,0.00022544,2]
[419274002,1775083845948,-299.291549,0.00022544,2]
[419274003,1775083845957,-299.291549,0.00022544,2]
[419274004,1775083845966,-299.291549,0.00022544,2]
[419274005,1775083845975,-484.596398,0.00022544,2]
[419274007,1775083845984,-484.596398,0.00022544,2]
[419274008,1775083845993,-151.0,0.00022544,2]
[419274010,1775083846002,-484.596398,0.00022544,2]
[419274011,1775083846011,-151.0,0.00022544,2]
[419274012,1775083846020,-484.596398,0.00022544,2]
[419274013,1775083846029,-151.0,0.00022544,2]
[419274014,1775083846038,-151.0,0.00022544,2]
[419274015,1775083846048,-643.0,0.00022544,2]
[419274016,1775083846057,-2201.0,0.00022544,2]
[419274017,1775083846067,-821.646,0.00022544,2]
[419274018,1775083846077,-184.0,0.00022544,2]
[419274019,1775083846087,-485.758,0.00022544,2]
[419274020,1775083846096,-160.0,0.00022545,14]
[419274021,1775083846107,-161.24859,0.00022545,14]
[419274022,1775083846119,-162.49718,0.00022545,14]
[419274023,1775083846129,-434.142579,0.00022545,14]
[419274024,1775083846140,-160.0,0.00022545,14]
[419274025,1775083846151,-165.350819,0.00022545,14]
[419274026,1775083846163,-170.701639,0.00022545,14]
[419274027,1775083846172,-301.444215,0.00022614,2]
[419274028,1775083846182,-280.8325,0.00022614,2]
[419274029,1775083846192,-280.8325,0.00022614,2]
[419274030,1775083846201,-280.8325,0.00022614,2]
[419274032,1775083846211,-280.8325,0.00022614,2]
[419274033,1775083846222,-151.0,0.00022614,2]
[419274034,1775083846232,-151.0,0.00022614,2]
[419274035,1775083846242,-151.0,0.00022614,2]
[419274036,1775083846254,-151.0,0.00022614,2]
[419274037,1775083846264,-1265.92899668,0.00022764,2]
[419274040,1775083846276,-1234.07100332,0.00022764,2]
[419274041,1775083846288,-2500.0,0.00022764,2]
[419274042,1775083846298,-2500.0,0.00022764,2]
[419274043,1775083846307,-2649.38972765,0.0002278,2]
[419274044,1775083846316,-500.0,0.00022791,2]
[419274045,1775083846327,-2153.67023106,0.00022819,29]
[419274046,1775083846336,-2000.0,0.00022888,2]
[419274047,1775083846346,-152.761577,0.00022907,2]
[419274048,1775083846357,-152.761577,0.00022907,2]
[419274049,1775083846367,-152.761577,0.00022907,2]
[419274050,1775083846376,-152.761577,0.00022907,2]
[419274051,1775083846386,-151.0,0.00022907,2]
[419274052,1775083846396,-151.0,0.00022907,2]
[419274053,1775083846406,-188.404536,0.00022907,2]
[419274054,1775083846415,-188.404536,0.00022907,2]
[419274055,1775083846425,-188.404536,0.00022907,2]
[419274056,1775083846434,-188.404536,0.00022907,2]
[419274058,1775083846443,-160.0,0.00022947,2]
[419274060,1775083846453,-160.0,0.00022947,2]
[419274062,1775083846462,-1000.0,0.0002295,10]
[419274063,1775083846471,-492.0,0.0002295,10]
[419274064,1775083846480,-1000.28965534,0.00023,2]
[419274065,1775083846490,-270.83333333,0.00023,2]
[419274066,1775083846500,-151.0,0.00023,2]
[419274067,1775083846510,-151.0,0.00023,2]
[419274068,1775083846520,-151.0,0.00023,2]
[419274069,1775083846530,-159.0,0.00023,2]
[419274070,1775083846539,-166.0,0.00023,2]
[419274071,1775083846549,-187.0,0.00023,2]
[419274072,1775083846558,-151.0,0.00023005,2]
[419274073,1775083846568,-151.0,0.00023005,2]
[419274074,1775083846577,-151.0,0.00023005,2]
[419274075,1775083846586,-46.21038613,0.00023005,2]
[419274076,1775083846599,-104.78961387,0.00023005,2]
[419274077,1775083846608,-151.0,0.00023005,2]
[419274078,1775083846617,-151.0,0.00023005,2]
[419274079,1775083846627,-151.0,0.00023005,2]
[419274080,1775083846637,-273.076928,0.00023005,2]
[419274081,1775083846647,-273.076928,0.00023005,2]
[419274082,1775083846656,-121.28486626,0.00023005,2]
[419274083,1775083846687,-209.0,0.00023,2]
[419274084,1775083846697,-151.79206174,0.00023005,2]
[419274085,1775083846707,-273.076928,0.00023005,2]
[419274086,1775083846717,-151.0,0.00023005,2]
[419274087,1775083846726,-480.184189,0.00023005,2]
[419274089,1775083846735,-151.0,0.00023005,2]
[419274090,1775083846744,-480.184189,0.00023005,2]
[419274091,1775083846753,-480.184189,0.00023005,2]
[419274092,1775083846763,-480.184189,0.00023005,2]
[419274093,1775083846772,-254.700093,0.00023005,2]
[419274094,1775083846782,-254.700093,0.00023005,2]
[419274095,1775083846791,-254.700093,0.00023005,2]
[419274096,1775083846800,-254.700093,0.00023005,2]
[419274097,1775083846810,-151.0,0.00023005,2]
[419274098,1775083846820,-318.928037,0.00023005,2]
[419274099,1775083846830,-318.928037,0.00023005,2]
[419274100,1775083846839,-318.928037,0.00023005,2]
[419274101,1775083846849,-318.928037,0.00023005,2]
[419274102,1775083846859,-156.630925,0.00023005,2]
[419274103,1775083846868,-156.630925,0.00023005,2]
[419274104,1775083846878,-156.630925,0.00023005,2]
[419274105,1775083846887,-156.630925,0.00023005,2]
[419274106,1775083846897,-1551.68665244,0.00023005,2]
[419274107,1775083846912,-28.26507756,0.00023005,2]
[419274108,1775083846922,-151.0,0.00023005,2]
[419274109,1775083846931,-1579.95173,0.00023005,2]
[419274110,1775083846941,-151.0,0.00023005,2]
[419274111,1775083846951,-1579.95173,0.00023005,2]
[419274112,1775083846960,-151.0,0.00023005,2]
[419274113,1775083846969,-1579.95173,0.00023005,2]
[419274114,1775083846978,-308.150494,0.00023005,2]
[419274115,1775083846987,-308.150494,0.00023005,2]
[419274116,1775083846997,-308.150494,0.00023005,2]
[419274117,1775083847007,-151.0,0.00023005,2]
[419274118,1775083847016,-308.150494,0.00023005,2]
[419274119,1775083847026,-151.0,0.00023005,2]
[419274120,1775083847035,-151.0,0.00023005,2]
[419274121,1775083847046,-151.0,0.00023005,2]
[419274122,1775083847055,-1563.992037,0.00023005,2]
[419274123,1775083847065,-1563.992037,0.00023005,2]
[419274124,1775083847075,-1563.992037,0.00023005,2]
[419274125,1775083847085,-1563.992037,0.00023005,2]
[419274126,1775083847095,-151.0,0.00023005,2]
[419274127,1775083847105,-151.0,0.00023005,2]
[419274128,1775083847116,-2377.435696,0.00023005,2]
[419274129,1775083847127,-2377.435696,0.00023005,2]
[419274130,1775083847137,-151.0,0.00023005,2]
[419274131,1775083847146,-2377.435696,0.00023005,2]
[419274132,1775083847156,-2377.435696,0.00023005,2]
[419274133,1775083847165,-151.0,0.00023005,2]
[419274134,1775083847174,-246.607153,0.00023005,2]
[419274135,1775083847183,-151.0,0.00023005,2]
[419274136,1775083847192,-151.0,0.00023005,2]
[419274137,1775083847202,-195.777454,0.00023005,2]
[419274138,1775083847211,-617.230416,0.00023005,2]
[419274139,1775083847220,-617.230416,0.00023005,2]
[419274140,1775083847233,-617.230416,0.00023005,2]
[419274141,1775083847244,-617.230416,0.00023005,2]
[419274142,1775083847255,-1815.498485,0.00023005,2]
[419274143,1775083847265,-1815.498485,0.00023005,2]
[419274144,1775083847276,-1815.498485,0.00023005,2]
[419274145,1775083847286,-1815.498485,0.00023005,2]
[419274146,1775083847298,-164.0,0.00023014,7]
[419274147,1775083847307,-500.0,0.00023065,2]
[419274148,1775083847318,-324.9282386,0.00023193,2]
[419274149,1775083847329,-151.0,0.00023193,2]
[419274150,1775083847339,-500.29879514,0.00023309,2]
[419274151,1775083847349,-500.0,0.00023309,2]
[419274152,1775083847359,-500.0,0.00023309,2]
[419274153,1775083847369,-502.24493625,0.00023309,2]
[419274154,1775083847379,-3000.0,0.00023312,2]
[419274155,1775083847473,-3000.0,0.00023312,2]
[419274156,1775083847484,-3000.0,0.00023312,2]
[419274157,1775083847494,-500.0,0.00023313,2]
[419274158,1775083847504,-500.0,0.00023313,2]
[419274159,1775083847513,-500.0,0.000234,2]
[419274160,1775083847522,-400.0,0.000234,7]
[419274161,1775083847532,-400.0,0.000234,5]
[419274162,1775083847541,-685.0,0.000234,2]
[419274163,1775083847551,-178.56,0.00023408,3]
[419274164,1775083847560,-256.6674,0.00023409,3]
[419274165,1775083847570,-256.6674,0.0002341,3]
[419274166,1775083847580,-256.6674,0.00023411,3]
[419274167,1775083847589,-300.19603651,0.00023418,2]
[419274168,1775083847599,-151.0,0.00023418,2]
[419274169,1775083847608,-151.0,0.00023418,2]
[419274170,1775083847618,-151.0,0.00023418,2]
[419274171,1775083847627,-151.0,0.00023418,2]
[419274172,1775083847636,-299.291549,0.00023418,2]
[419274173,1775083847646,-299.291549,0.00023418,2]